{"text_format":"1","workbook":"xlsx","n_sheets":3,"sheets":["Sheet1","Sheet2","Calculator"],"not_rendered":{"charts":0,"images":0,"macros":1,"external_links":0,"defined_names":0,"comments":0,"pivot_tables":0},"unopened":[],"bounds":{"document_bytes":16777216,"sheet_cells":100000,"rows_first":2000,"rows_last":500,"rows_between":2000,"halvings":0,"cell_chars":16384,"cell_head_chars":4096},"cells_cut":0,"cells_raw":0,"read":"whole","date_system":"1900"}

{"sheet":"Sheet1","index":0,"n_rows":124,"n_cols":23,"rows_kept":124,"cut":false,"hidden":false,"merged":[]}
["\nAnathema  - Alliance","0,01262","9345 G","Sell",null,null,null,null,null,null,null,null,null,null,null,null,null,null,{"$f":"A1","v":"\nAnathema  - Alliance"},"Rate",{"$f":"B1-G1*B1","v":1.2619999999999999E-2},"Need",{"$f":"C1","v":"9345 G"}]
["\nArcanite Reaper  - Horde","0,01214","4000 G","Sell",null,null,null,null,null,null,null,null,null,null,null,null,null,null,{"$f":"A2","v":"\nArcanite Reaper  - Horde"},"Rate",{"$f":"B2-G1*B2","v":1.214E-2},"Need",{"$f":"C2","v":"4000 G"}]
["\nArugal  - Alliance","0,01723","22589 G","Sell",null,"2020-10-10T13:35:47",null,null,null,null,null,null,null,null,null,null,null,null,"\nArugal  - Alliance","Rate",{"$f":"B3-G1*B3","v":1.7229999999999999E-2},"Need","22589 G"]
["\nArugal  - Horde","0,01845","1500 G","Sell",null,"SELL RATE WOW CLASSIC.xlsm",null,null,null,null,null,null,null,null,null,null,null,null,"\nArugal  - Horde","Rate",{"$f":"B4-G1*B4","v":1.8450000000000001E-2},"Need","1500 G"]
["\nArugal  - Horde","0,01652","24467 G","Sell",null,null,null,null,null,null,null,null,null,null,null,null,null,null,"\nArugal  - Horde","Rate",{"$f":"B5-G1*B5","v":1.652E-2},"Need","24467 G"]
["\nAshkandi  - Alliance","0,01176","200000 G","Sell",null,null,null,null,null,null,null,null,null,null,null,null,null,null,"\nAshkandi  - Alliance","Rate",{"$f":"B6-G1*B6","v":1.176E-2},"Need","200000 G"]
["\nAshkandi  - Horde","0,01845","500 G","Sell",null,null,null,null,null,null,null,null,null,null,null,null,null,null,"\nAshkandi  - Horde","Rate",{"$f":"B7-G1*B7","v":1.8450000000000001E-2},"Need","500 G"]
["\nAshkandi  - Horde","0,01247","9681 G","Sell",null,null,null,null,null,null,null,null,null,null,null,null,null,null,"\nAshkandi  - Horde","Rate",{"$f":"B8-G1*B8","v":1.247E-2},"Need","9681 G"]
["\nAtiesh  - Alliance","0,01568","200000 G","Sell",null,null,null,null,null,null,null,null,null,null,null,null,null,null,"\nAtiesh  - Alliance","Rate",{"$f":"B9-G1*B9","v":1.5679999999999999E-2},"Need","200000 G"]
["\nAtiesh  - Horde","0,01568","200000 G","Sell",null,null,null,null,null,null,null,null,null,null,null,null,null,null,"\nAtiesh  - Horde","Rate",{"$f":"B10-G1*B10","v":1.5679999999999999E-2},"Need","200000 G"]
["\nAzuresong  - Alliance","0,01998","400 G","Sell",null,null,null,null,null,null,null,null,null,null,null,null,null,null,"\nAzuresong  - Alliance","Rate",{"$f":"B11-G1*B11","v":1.9980000000000001E-2},"Need","400 G"]
["\nAzuresong  - Alliance","0,01515","2107 G","Sell",null,null,null,null,null,null,null,null,null,null,null,null,null,null,"\nAzuresong  - Alliance","Rate",{"$f":"B12-G1*B12","v":1.515E-2},"Need","2107 G"]
["\nAzuresong  - Horde","0,01998","2050 G","Sell",null,null,null,null,null,null,null,null,null,null,null,null,null,null,"\nAzuresong  - Horde","Rate",{"$f":"B13-G1*B13","v":1.9980000000000001E-2},"Need","2050 G"]
["\nAzuresong  - Horde","0,01829","2500 G","Sell",null,null,null,null,null,null,null,null,null,null,null,null,null,null,"\nAzuresong  - Horde","Rate",{"$f":"B14-G1*B14","v":1.8290000000000001E-2},"Need","2500 G"]
["\nBenediction  - Alliance","0,01567","200000 G","Sell",null,null,null,null,null,null,null,null,null,null,null,null,null,null,"\nBenediction  - Alliance","Rate",{"$f":"B15-G1*B15","v":1.567E-2},"Need","200000 G"]
["\nBenediction  - Horde","0,01305","200000 G","Sell",null,null,null,null,null,null,null,null,null,null,null,null,null,null,"\nBenediction  - Horde","Rate",{"$f":"B16-G1*B16","v":1.3050000000000001E-2},"Need","200000 G"]
["\nBenediction  - Horde","0,01845","525 G","Sell",null,null,null,null,null,null,null,null,null,null,null,null,null,null,"\nBenediction  - Horde","Rate",{"$f":"B17-G1*B17","v":1.8450000000000001E-2},"Need","525 G"]
["\nBigglesworth  - Alliance","0,01869","21850 G","Sell",null,null,null,null,null,null,null,null,null,null,null,null,null,null,"\nBigglesworth  - Alliance","Rate",{"$f":"B18-G1*B18","v":1.8689999999999998E-2},"Need","21850 G"]
["\nBigglesworth  - Horde","0,01737","10782 G","Sell",null,null,null,null,null,null,null,null,null,null,null,null,null,null,"\nBigglesworth  - Horde","Rate",{"$f":"B19-G1*B19","v":1.737E-2},"Need","10782 G"]
["\nBigglesworth  - Horde","0,01845","400 G","Sell",null,null,null,null,null,null,null,null,null,null,null,null,null,null,"\nBigglesworth  - Horde","Rate",{"$f":"B20-G1*B20","v":1.8450000000000001E-2},"Need","400 G"]
["\nBlaumeux  - Alliance","0,01189","200000 G","Sell",null,null,null,null,null,null,null,null,null,null,null,null,null,null,"\nBlaumeux  - Alliance","Rate",{"$f":"B21-G1*B21","v":1.189E-2},"Need","200000 G"]
["\nBlaumeux  - Horde","0,01604","62136 G","Sell",null,null,null,null,null,null,null,null,null,null,null,null,null,null,"\nBlaumeux  - Horde","Rate",{"$f":"B22-G1*B22","v":1.6039999999999999E-2},"Need","62136 G"]
["\nBlaumeux  - Horde","0,01845","300 G","Sell",null,null,null,null,null,null,null,null,null,null,null,null,null,null,"\nBlaumeux  - Horde","Rate",{"$f":"B23-G1*B23","v":1.8450000000000001E-2},"Need","300 G"]
["\nBloodsail Buccaneers  - Alliance","0,01998","400 G","Sell",null,null,null,null,null,null,null,null,null,null,null,null,null,null,"\nBloodsail Buccaneers  - Alliance","Rate",{"$f":"B24-G1*B24","v":1.9980000000000001E-2},"Need","400 G"]
["\nBloodsail Buccaneers  - Alliance","0,01406","9400 G","Sell",null,null,null,null,null,null,null,null,null,null,null,null,null,null,"\nBloodsail Buccaneers  - Alliance","Rate",{"$f":"B25-G1*B25","v":1.406E-2},"Need","9400 G"]
["\nBloodsail Buccaneers  - Horde","0,02152","800 G","Sell",null,null,null,null,null,null,null,null,null,null,null,null,null,null,"\nBloodsail Buccaneers  - Horde","Rate",{"$f":"B26-G1*B26","v":2.1520000000000001E-2},"Need","800 G"]
["\nBloodsail Buccaneers  - Horde","0,01415","3500 G","Sell",null,null,null,null,null,null,null,null,null,null,null,null,null,null,"\nBloodsail Buccaneers  - Horde","Rate",{"$f":"B27-G1*B27","v":1.4149999999999999E-2},"Need","3500 G"]
["\nDeviate Delight  - Alliance","0,01308","200000 G","Sell",null,null,null,null,null,null,null,null,null,null,null,null,null,null,"\nDeviate Delight  - Alliance","Rate",{"$f":"B28-G1*B28","v":1.308E-2},"Need","200000 G"]
["\nDeviate Delight  - Horde","0,02152","2200 G","Sell",null,null,null,null,null,null,null,null,null,null,null,null,null,null,"\nDeviate Delight  - Horde","Rate",{"$f":"B29-G1*B29","v":2.1520000000000001E-2},"Need","2200 G"]
["\nDeviate Delight  - Horde","0,01881","4300 G","Sell",null,null,null,null,null,null,null,null,null,null,null,null,null,null,"\nDeviate Delight  - Horde","Rate",{"$f":"B30-G1*B30","v":1.881E-2},"Need","4300 G"]
["\nEarthfury  - Alliance","0,01568","200000 G","Sell",null,null,null,null,null,null,null,null,null,null,null,null,null,null,"\nEarthfury  - Alliance","Rate",{"$f":"B31-G1*B31","v":1.5679999999999999E-2},"Need","200000 G"]
["\nEarthfury  - Horde","0,01523","15150 G","Sell",null,null,null,null,null,null,null,null,null,null,null,null,null,null,"\nEarthfury  - Horde","Rate",{"$f":"B32-G1*B32","v":1.523E-2},"Need","15150 G"]
["\nEarthfury  - Horde","0,01845","3600 G","Sell",null,null,null,null,null,null,null,null,null,null,null,null,null,null,"\nEarthfury  - Horde","Rate",{"$f":"B33-G1*B33","v":1.8450000000000001E-2},"Need","3600 G"]
["\nFaerlina  - Alliance","0,01242","200000 G","Sell",null,null,null,null,null,null,null,null,null,null,null,null,null,null,"\nFaerlina  - Alliance","Rate",{"$f":"B34-G1*B34","v":1.242E-2},"Need","200000 G"]
["\nFaerlina  - Horde","0,01845","700 G","Sell",null,null,null,null,null,null,null,null,null,null,null,null,null,null,"\nFaerlina  - Horde","Rate",{"$f":"B35-G1*B35","v":1.8450000000000001E-2},"Need","700 G"]
["\nFairbanks  - Alliance","0,01998","300 G","Sell",null,null,null,null,null,null,null,null,null,null,null,null,null,null,"\nFairbanks  - Alliance","Rate",{"$f":"B36-G1*B36","v":1.9980000000000001E-2},"Need","300 G"]
["\nFairbanks  - Alliance","0,01682","9020 G","Sell",null,null,null,null,null,null,null,null,null,null,null,null,null,null,"\nFairbanks  - Alliance","Rate",{"$f":"B37-G1*B37","v":1.6820000000000002E-2},"Need","9020 G"]
["\nFairbanks  - Horde","0,01307","200000 G","Sell",null,null,null,null,null,null,null,null,null,null,null,null,null,null,"\nFairbanks  - Horde","Rate",{"$f":"B38-G1*B38","v":1.307E-2},"Need","200000 G"]
["\nFelstriker  - Alliance","0,01307","1000 G","Sell",null,null,null,null,null,null,null,null,null,null,null,null,null,null,"\nFelstriker  - Alliance","Rate",{"$f":"B39-G1*B39","v":1.307E-2},"Need","1000 G"]
["\nGrobbulus  - Alliance","0,01371","200000 G","Sell",null,null,null,null,null,null,null,null,null,null,null,null,null,null,"\nGrobbulus  - Alliance","Rate",{"$f":"B40-G1*B40","v":1.371E-2},"Need","200000 G"]
["\nGrobbulus  - Horde","0,01845","500 G","Sell",null,null,null,null,null,null,null,null,null,null,null,null,null,null,"\nGrobbulus  - Horde","Rate",{"$f":"B41-G1*B41","v":1.8450000000000001E-2},"Need","500 G"]
["\nGrobbulus  - Horde","0,01534","7200 G","Sell",null,null,null,null,null,null,null,null,null,null,null,null,null,null,"\nGrobbulus  - Horde","Rate",{"$f":"B42-G1*B42","v":1.5339999999999999E-2},"Need","7200 G"]
["\nHeartseeker  - Alliance","0,01403","4400 G","Sell",null,null,null,null,null,null,null,null,null,null,null,null,null,null,"\nHeartseeker  - Alliance","Rate",{"$f":"B43-G1*B43","v":1.4030000000000001E-2},"Need","4400 G"]
["\nHerod  - Alliance","0,01691","1200 G","Sell",null,null,null,null,null,null,null,null,null,null,null,null,null,null,"\nHerod  - Alliance","Rate",{"$f":"B44-G1*B44","v":1.6910000000000001E-2},"Need","1200 G"]
["\nHerod  - Alliance","0,01241","200000 G","Sell",null,null,null,null,null,null,null,null,null,null,null,null,null,null,"\nHerod  - Alliance","Rate",{"$f":"B45-G1*B45","v":1.2409999999999999E-2},"Need","200000 G"]
["\nHerod  - Horde","0,01177","200000 G","Sell",null,null,null,null,null,null,null,null,null,null,null,null,null,null,"\nHerod  - Horde","Rate",{"$f":"B46-G1*B46","v":1.1769999999999999E-2},"Need","200000 G"]
["\nIncendius  - Alliance","0,01269","21401 G","Sell",null,null,null,null,null,null,null,null,null,null,null,null,null,null,"\nIncendius  - Alliance","Rate",{"$f":"B47-G1*B47","v":1.269E-2},"Need","21401 G"]
["\nKirtonos  - Alliance","0,01778","7600 G","Sell",null,null,null,null,null,null,null,null,null,null,null,null,null,null,"\nKirtonos  - Alliance","Rate",{"$f":"B48-G1*B48","v":1.7780000000000001E-2},"Need","7600 G"]
["\nKirtonos  - Horde","0,01324","18303 G","Sell",null,null,null,null,null,null,null,null,null,null,null,null,null,null,"\nKirtonos  - Horde","Rate",{"$f":"B49-G1*B49","v":1.324E-2},"Need","18303 G"]
["\nKromcrush  - Alliance","0,01546","5900 G","Sell",null,null,null,null,null,null,null,null,null,null,null,null,null,null,"\nKromcrush  - Alliance","Rate",{"$f":"B50-G1*B50","v":1.546E-2},"Need","5900 G"]
["\nKromcrush  - Alliance","0,01845","500 G","Sell",null,null,null,null,null,null,null,null,null,null,null,null,null,null,"\nKromcrush  - Alliance","Rate",{"$f":"B51-G1*B51","v":1.8450000000000001E-2},"Need","500 G"]
["\nKromcrush  - Horde","0,01691","800 G","Sell",null,null,null,null,null,null,null,null,null,null,null,null,null,null,"\nKromcrush  - Horde","Rate",{"$f":"B52-G1*B52","v":1.6910000000000001E-2},"Need","800 G"]
["\nKromcrush  - Horde","0,01437","200000 G","Sell",null,null,null,null,null,null,null,null,null,null,null,null,null,null,"\nKromcrush  - Horde","Rate",{"$f":"B53-G1*B53","v":1.4370000000000001E-2},"Need","200000 G"]
["\nKurinnaxx  - Alliance","0,01231","14600 G","Sell",null,null,null,null,null,null,null,null,null,null,null,null,null,null,"\nKurinnaxx  - Alliance","Rate",{"$f":"B54-G1*B54","v":1.231E-2},"Need","14600 G"]
["\nKurinnaxx  - Horde","0,01404","6750 G","Sell",null,null,null,null,null,null,null,null,null,null,null,null,null,null,"\nKurinnaxx  - Horde","Rate",{"$f":"B55-G1*B55","v":1.404E-2},"Need","6750 G"]
["\nLoatheb  - Alliance","0,01336","9700 G","Sell",null,null,null,null,null,null,null,null,null,null,null,null,null,null,"\nLoatheb  - Alliance","Rate",{"$f":"B56-G1*B56","v":1.336E-2},"Need","9700 G"]
["\nMankrik  - Alliance","0,01237","10800 G","Sell",null,null,null,null,null,null,null,null,null,null,null,null,null,null,"\nMankrik  - Alliance","Rate",{"$f":"B57-G1*B57","v":1.2370000000000001E-2},"Need","10800 G"]
["\nMankrik  - Horde","0,0124","200000 G","Sell",null,null,null,null,null,null,null,null,null,null,null,null,null,null,"\nMankrik  - Horde","Rate",{"$f":"B58-G1*B58","v":1.24E-2},"Need","200000 G"]
["\nMyzrael  - Alliance","0,01998","500 G","Sell",null,null,null,null,null,null,null,null,null,null,null,null,null,null,"\nMyzrael  - Alliance","Rate",{"$f":"B59-G1*B59","v":1.9980000000000001E-2},"Need","500 G"]
["\nMyzrael  - Alliance","0,0183","3650 G","Sell",null,null,null,null,null,null,null,null,null,null,null,null,null,null,"\nMyzrael  - Alliance","Rate",{"$f":"B60-G1*B60","v":1.83E-2},"Need","3650 G"]
["\nMyzrael  - Horde","0,0143","23200 G","Sell",null,null,null,null,null,null,null,null,null,null,null,null,null,null,"\nMyzrael  - Horde","Rate",{"$f":"B61-G1*B61","v":1.43E-2},"Need","23200 G"]
["\nNetherwind  - Alliance","0,01584","8900 G","Sell",null,null,null,null,null,null,null,null,null,null,null,null,null,null,"\nNetherwind  - Alliance","Rate",{"$f":"B62-G1*B62","v":1.584E-2},"Need","8900 G"]
["\nNetherwind  - Horde","0,01781","14400 G","Sell",null,null,null,null,null,null,null,null,null,null,null,null,null,null,"\nNetherwind  - Horde","Rate",{"$f":"B63-G1*B63","v":1.7809999999999999E-2},"Need","14400 G"]
["\nOld Blanchy  - Alliance","0,01723","7700 G","Sell",null,null,null,null,null,null,null,null,null,null,null,null,null,null,"\nOld Blanchy  - Alliance","Rate",{"$f":"B64-G1*B64","v":1.7229999999999999E-2},"Need","7700 G"]
["\nOld Blanchy  - Horde","0,01722","4800 G","Sell",null,null,null,null,null,null,null,null,null,null,null,null,null,null,"\nOld Blanchy  - Horde","Rate",{"$f":"B65-G1*B65","v":1.7219999999999999E-2},"Need","4800 G"]
["\nOld Blanchy  - Horde","0,01998","12300 G","Sell",null,null,null,null,null,null,null,null,null,null,null,null,null,null,{"$f":"A66","v":"\nOld Blanchy  - Horde"},"Rate",{"$f":"B66-G1*B66","v":1.9980000000000001E-2},"Need",{"$f":"C66","v":"12300 G"}]
["\nPagle  - Alliance","0,01691","12200 G","Sell",null,null,null,null,null,null,null,null,null,null,null,null,null,null,"\nPagle  - Alliance","Rate",{"$f":"B67-G1*B67","v":1.6910000000000001E-2},"Need","12200 G"]
["\nPagle  - Alliance","0,01998","2300 G","Sell",null,null,null,null,null,null,null,null,null,null,null,null,null,null,"\nPagle  - Alliance","Rate",{"$f":"B68-G1*B68","v":1.9980000000000001E-2},"Need","2300 G"]
["\nPagle  - Horde","0,01845","1000 G","Sell",null,null,null,null,null,null,null,null,null,null,null,null,null,null,"\nPagle  - Horde","Rate",{"$f":"B69-G1*B69","v":1.8450000000000001E-2},"Need","1000 G"]
["\nPagle  - Horde","0,01307","200000 G","Sell",null,null,null,null,null,null,null,null,null,null,null,null,null,null,"\nPagle  - Horde","Rate",{"$f":"B70-G1*B70","v":1.307E-2},"Need","200000 G"]
["\nRattlegore  - Alliance","0,01359","40250 G","Sell",null,null,null,null,null,null,null,null,null,null,null,null,null,null,"\nRattlegore  - Alliance","Rate",{"$f":"B71-G1*B71","v":1.359E-2},"Need","40250 G"]
["\nRattlegore  - Horde","0,01507","15300 G","Sell",null,null,null,null,null,null,null,null,null,null,null,null,null,null,"\nRattlegore  - Horde","Rate",{"$f":"B72-G1*B72","v":1.507E-2},"Need","15300 G"]
["\nRemulos  - Alliance","0,01437","200000 G","Sell",null,null,null,null,null,null,null,null,null,null,null,null,null,null,"\nRemulos  - Alliance","Rate",{"$f":"B73-G1*B73","v":1.4370000000000001E-2},"Need","200000 G"]
["\nRemulos  - Horde","0,02043","7970 G","Sell",null,null,null,null,null,null,null,null,null,null,null,null,null,null,"\nRemulos  - Horde","Rate",{"$f":"B74-G1*B74","v":2.043E-2},"Need","7970 G"]
["\nSkeram  - Alliance","0,01307","200000 G","Sell",null,null,null,null,null,null,null,null,null,null,null,null,null,null,"\nSkeram  - Alliance","Rate",{"$f":"B75-G1*B75","v":1.307E-2},"Need","200000 G"]
["\nSkeram  - Horde","0,01998","2900 G","Sell",null,null,null,null,null,null,null,null,null,null,null,null,null,null,"\nSkeram  - Horde","Rate",{"$f":"B76-G1*B76","v":1.9980000000000001E-2},"Need","2900 G"]
["\nSkeram  - Horde","0,01861","12110 G","Sell",null,null,null,null,null,null,null,null,null,null,null,null,null,null,"\nSkeram  - Horde","Rate",{"$f":"B77-G1*B77","v":1.8610000000000002E-2},"Need","12110 G"]
["\nSmolderweb  - Alliance","0,01307","1500 G","Sell",null,null,null,null,null,null,null,null,null,null,null,null,null,null,"\nSmolderweb  - Alliance","Rate",{"$f":"B78-G1*B78","v":1.307E-2},"Need","1500 G"]
["\nSmolderweb  - Horde","0,01383","9450 G","Sell",null,null,null,null,null,null,null,null,null,null,null,null,null,null,"\nSmolderweb  - Horde","Rate",{"$f":"B79-G1*B79","v":1.383E-2},"Need","9450 G"]
["\nStalagg  - Alliance","0,0196","2000 G","Sell",null,null,null,null,null,null,null,null,null,null,null,null,null,null,"\nStalagg  - Alliance","Rate",{"$f":"B80-G1*B80","v":1.9599999999999999E-2},"Need","2000 G"]
["\nSulfuras  - Alliance","0,01537","900 G","Sell",null,null,null,null,null,null,null,null,null,null,null,null,null,null,"\nSulfuras  - Alliance","Rate",{"$f":"B81-G1*B81","v":1.537E-2},"Need","900 G"]
["\nSulfuras  - Alliance","0,01545","27035 G","Sell",null,null,null,null,null,null,null,null,null,null,null,null,null,null,"\nSulfuras  - Alliance","Rate",{"$f":"B82-G1*B82","v":1.545E-2},"Need","27035 G"]
["\nSulfuras  - Horde","0,01394","7240 G","Sell",null,null,null,null,null,null,null,null,null,null,null,null,null,null,"\nSulfuras  - Horde","Rate",{"$f":"B83-G1*B83","v":1.3939999999999999E-2},"Need","7240 G"]
["\nSul'thraze  - Alliance","0,01568","1800 G","Sell",null,null,null,null,null,null,null,null,null,null,null,null,null,null,"\nSul'thraze  - Alliance","Rate",{"$f":"B84-G1*B84","v":1.5679999999999999E-2},"Need","1800 G"]
["\nThalnos  - Alliance","0,01829","1000 G","Sell",null,null,null,null,null,null,null,null,null,null,null,null,null,null,"\nThalnos  - Alliance","Rate",{"$f":"B85-G1*B85","v":1.8290000000000001E-2},"Need","1000 G"]
["\nThunderfury  - Alliance","0,01845","1575 G","Sell",null,null,null,null,null,null,null,null,null,null,null,null,null,null,"\nThunderfury  - Alliance","Rate",{"$f":"B86-G1*B86","v":1.8450000000000001E-2},"Need","1575 G"]
["\nThunderfury  - Alliance","0,01515","4285 G","Sell",null,null,null,null,null,null,null,null,null,null,null,null,null,null,"\nThunderfury  - Alliance","Rate",{"$f":"B87-G1*B87","v":1.515E-2},"Need","4285 G"]
["\nThunderfury  - Horde","0,01313","200000 G","Sell",null,null,null,null,null,null,null,null,null,null,null,null,null,null,"\nThunderfury  - Horde","Rate",{"$f":"B88-G1*B88","v":1.3129999999999999E-2},"Need","200000 G"]
["\nWestfall  - Alliance","0,01698","200000 G","Sell",null,null,null,null,null,null,null,null,null,null,null,null,null,null,"\nWestfall  - Alliance","Rate",{"$f":"B89-G1*B89","v":1.6979999999999999E-2},"Need","200000 G"]
["\nWestfall  - Alliance","0,01998","2000 G","Sell",null,null,null,null,null,null,null,null,null,null,null,null,null,null,"\nWestfall  - Alliance","Rate",{"$f":"B90-G1*B90","v":1.9980000000000001E-2},"Need","2000 G"]
["\nWestfall  - Horde","0,01263","3820 G","Sell",null,null,null,null,null,null,null,null,null,null,null,null,null,null,"\nWestfall  - Horde","Rate",{"$f":"B91-G1*B91","v":1.2630000000000001E-2},"Need","3820 G"]
["\nWhitemane  - Alliance","0,01998","357 G","Sell",null,null,null,null,null,null,null,null,null,null,null,null,null,null,"\nWhitemane  - Alliance","Rate",{"$f":"B92-G1*B92","v":1.9980000000000001E-2},"Need","357 G"]
["\nWhitemane  - Alliance","0,01676","9760 G","Sell",null,null,null,null,null,null,null,null,null,null,null,null,null,null,"\nWhitemane  - Alliance","Rate",{"$f":"B93-G1*B93","v":1.6760000000000001E-2},"Need","9760 G"]
["\nWhitemane  - Horde","0,01438","200000 G","Sell",null,null,null,null,null,null,null,null,null,null,null,null,null,null,"\nWhitemane  - Horde","Rate",{"$f":"B94-G1*B94","v":1.438E-2},"Need","200000 G"]
["\nWindseeker  - Alliance","0,01913","12650 G","Sell",null,null,null,null,null,null,null,null,null,null,null,null,null,null,"\nWindseeker  - Alliance","Rate",{"$f":"B95-G1*B95","v":1.9130000000000001E-2},"Need","12650 G"]
["\nWindseeker  - Alliance","0,01845","1200 G","Sell",null,null,null,null,null,null,null,null,null,null,null,null,null,null,"\nWindseeker  - Alliance","Rate",{"$f":"B96-G1*B96","v":1.8450000000000001E-2},"Need","1200 G"]
["\nWindseeker  - Horde","0,01998","1200 G","Sell",null,null,null,null,null,null,null,null,null,null,null,null,null,null,"\nWindseeker  - Horde","Rate",{"$f":"B97-G1*B97","v":1.9980000000000001E-2},"Need","1200 G"]
["\nWindseeker  - Horde","0,01176","200000 G","Sell",null,null,null,null,null,null,null,null,null,null,null,null,null,null,"\nWindseeker  - Horde","Rate",{"$f":"B98-G1*B98","v":1.176E-2},"Need","200000 G"]
["\nYojamba  - Alliance","0,01998","840 G","Sell",null,null,null,null,null,null,null,null,null,null,null,null,null,null,"\nYojamba  - Alliance","Rate",{"$f":"B99-G1*B99","v":1.9980000000000001E-2},"Need","840 G"]
["\nYojamba  - Alliance","0,01811","3190 G","Sell",null,null,null,null,null,null,null,null,null,null,null,null,null,null,"\nYojamba  - Alliance","Rate",{"$f":"B100-G1*B100","v":1.8110000000000001E-2},"Need","3190 G"]
["\nYojamba  - Horde","0,01691","1800 G","Sell",null,null,null,null,null,null,null,null,null,null,null,null,null,null,"\nYojamba  - Horde","Rate",{"$f":"B101-G1*B101","v":1.6910000000000001E-2},"Need","1800 G"]
["\nYojamba  - Horde","0,01671","26680 G","Sell",null,null,null,null,null,null,null,null,null,null,null,null,null,null,"\nYojamba  - Horde","Rate",{"$f":"B102-G1*B102","v":1.6709999999999999E-2},"Need","26680 G"]
[null,null,null,null,null,null,null,null,null,null,null,null,null,null,null,null,null,null,0,"Rate",{"$f":"B103-G1*B103","v":0},"Need",0]
[null,null,null,null,null,null,null,null,null,null,null,null,null,null,null,null,null,null,0,"Rate",{"$f":"B104-G1*B104","v":0},"Need",0]
[null,null,null,null,null,null,null,null,null,null,null,null,null,null,null,null,null,null,0,"Rate",{"$f":"B105-G1*B105","v":0},"Need",0]
[null,null,null,null,null,null,null,null,null,null,null,null,null,null,null,null,null,null,0,"Rate",{"$f":"B106-G1*B106","v":0},"Need",0]
[null,null,null,null,null,null,null,null,null,null,null,null,null,null,null,null,null,null,0,"Rate",{"$f":"B107-G1*B107","v":0},"Need",0]
[null,null,null,null,null,null,null,null,null,null,null,null,null,null,null,null,null,null,0,"Rate",{"$f":"B108-G1*B108","v":0},"Need",0]
[null,null,null,null,null,null,null,null,null,null,null,null,null,null,null,null,null,null,0,"Rate",{"$f":"B109-G1*B109","v":0},"Need",0]
[null,null,null,null,null,null,null,null,null,null,null,null,null,null,null,null,null,null,0,"Rate",{"$f":"B110-G1*B110","v":0},"Need",0]
[null,null,null,null,null,null,null,null,null,null,null,null,null,null,null,null,null,null,0,"Rate",{"$f":"B111-G1*B111","v":0},"Need",0]
[null,null,null,null,null,null,null,null,null,null,null,null,null,null,null,null,null,null,0,"Rate",{"$f":"B112-G1*B112","v":0},"Need",0]
[null,null,null,null,null,null,null,null,null,null,null,null,null,null,null,null,null,null,0,"Rate",{"$f":"B113-G1*B113","v":0},"Need",0]
[null,null,null,null,null,null,null,null,null,null,null,null,null,null,null,null,null,null,0,"Rate",{"$f":"B114-G1*B114","v":0},"Need",0]
[null,null,null,null,null,null,null,null,null,null,null,null,null,null,null,null,null,null,0,"Rate",{"$f":"B115-G1*B115","v":0},"Need",0]
[null,null,null,null,null,null,null,null,null,null,null,null,null,null,null,null,null,null,0,"Rate",{"$f":"B116-G1*B116","v":0},"Need",0]
[null,null,null,null,null,null,null,null,null,null,null,null,null,null,null,null,null,null,0,"Rate",{"$f":"B117-G1*B117","v":0},"Need",0]
[null,null,null,null,null,null,null,null,null,null,null,null,null,null,null,null,null,null,0,"Rate",{"$f":"B118-G1*B118","v":0},"Need",0]
[null,null,null,null,null,null,null,null,null,null,null,null,null,null,null,null,null,null,0,"Rate",{"$f":"B119-G1*B119","v":0},"Need",0]
[null,null,null,null,null,null,null,null,null,null,null,null,null,null,null,null,null,null,0,"Rate",{"$f":"B120-G1*B120","v":0},"Need",0]
[null,null,null,null,null,null,null,null,null,null,null,null,null,null,null,null,null,null,0,"Rate",{"$f":"B121-G1*B121","v":0},"Need",0]
[null,null,null,null,null,null,null,null,null,null,null,null,null,null,null,null,null,null,0,"Rate",{"$f":"B122-G1*B122","v":0},"Need",0]
[null,null,null,null,null,null,null,null,null,null,null,null,null,null,null,null,null,null,0,"Rate",{"$f":"B123-G1*B123","v":0},"Need",0]
[null,null,null,null,null,null,null,null,null,null,null,null,null,null,null,null,null,null,0,"Rate",{"$f":"B124-G1*B124","v":0},"Need",0]

{"sheet":"Sheet2","index":1,"n_rows":43,"n_cols":21,"rows_kept":43,"cut":false,"hidden":false,"merged":[]}
[null,null,null,"SAD","\nAnathema  - Horde","0,02907","400 G",null,"\nAnathema  - Horde","0,02907","400 G",null,"\nAnathema  - Horde","0,02907","400 G","\nAnathema  - Horde","0,02907","400 G","\nAnathema  - Horde","0,02907","400 G"]
[null,null,null,"SAD"]
[null,null,null,"SAD"]
[null,null,null,"SAD"]
[null,null,null,"SAD"]
[null,null,null,"SAD"]
[null,null,null,"SAD"]
[null,null,null,"SAD"]
[null,null,null,"SAD"]
[null,null,null,"SAD"]
[null,null,null,"SAD"]
[null,null,null,"SAD"]
[null,null,null,"SAD"]
[null,null,null,"SAD"]
[null,null,null,"SAD"]
[null,null,null,"SAD"]
[null,null,null,"SAD"]
[null,null,null,"SAD"]
[null,null,null,"SAD"]
[null,null,null,"SAD"]
[null,null,null,"SAD"]
[null,null,null,"SAD"]
[null,null,null,"SAD"]
[null,null,null,"SAD"]
[null,null,null,"SAD"]
[null,null,null,"SAD"]
[null,null,null,"SAD"]
[null,null,null,"SAD"]
[null,null,null,"SAD"]
[null,null,null,"SAD"]
[null,null,null,"SAD"]
[null,null,null,"SAD"]
[null,null,null,"SAD"]
[null,null,null,"SAD"]
[null,null,null,"SAD"]
[null,null,null,"SAD"]
[null,null,null,"SAD"]
[null,null,null,"SAD"]
[null,null,null,"SAD"]
[null,null,null,"SAD"]
[null,null,null,"SAD"]
[null,null,null,"SAD"]
[null,null,null,"SAD"]

{"sheet":"Calculator","index":2,"n_rows":37,"n_cols":8,"rows_kept":37,"cut":false,"hidden":false,"merged":[[0,1,3,5],[6,1,9,5],[19,1,22,5],[25,4,27,4]]}
[null,"GOLDMASTERGM.COM"]
[]
[]
[]
[]
[]
[null,"MMOBUYER"]
[]
[]
[]
[]
[null,"RATE DOLLAR KE RUPIAH : ",14000,{"$f":"C16*C12","v":233.38000000000002},"PENDAPATAN MENURUT % : ",0.13]
[]
[]
[]
[null,"RATE DI MMOBUYER : ",1.6670000000000001E-2,null,"RATE KE FARMER",{"$f":"D12-F12*D12","v":203.04060000000001}]
[null,null,"."]
[]
[]
[null,"G2G"]
[]
[]
[]
[]
[null,"RATE DOLLAR KE RUPIAH : ",14000,{"$f":"C29*C25","v":268.65999999999997},"PENGURANGAN KE FARMER % : ",0.24,null,{"$f":"F25-F26","v":0.12}]
[null,null,null,null,"FEE :",0.12]
[]
[null,null,null,null,null,{"$f":"F33-F26*F33","v":354631.19999999995}]
[null,"RATE DI G2G : ",1.9189999999999999E-2,null,"RATE KE FARMER USD",{"$f":"C29-F25*C29","v":1.4584399999999999E-2}]
[null,null,"."]
[null,null,null,null,"RATE KE FARMER IDR",{"$f":"F29*C25","v":204.18159999999997}]
[]
[null,"JUMLAH GOLD YANG DI JUAL :",1500,null,"TOTAL ",{"$f":"D25*C33","v":402989.99999999994}]
[]
[null,null,null,null,"BAYAR KE FARMER",{"$f":"F31*C33","v":306272.39999999997}]
[]
[null,null,null,null,"INCOME",{"$f":"F28-F35","v":48358.799999999988}]